Cogmind - Beta 12 @@@ ROGUE MODE // 2023.09.27 @ 18:04:40 Player: Whitebacon Result: Destroyed by Lightning with EMDS Performance ------------- Evolutions (4) 2000 Regions Visited (11) 2200 Robots Destroyed (160) 800 Value Destroyed (6114) 6114 Prototype IDs (20) 400 Alien Tech Used (0) 0 Bonus (709) 709 TOTAL SCORE: 12223 Bonus ------- High Alert Combat Kills 259 Follower Combat Kills 50 Network Hubs Disabled 400 Cogmind --------- Core Integrity 0/850 Matter 295/300 Energy 92/100 System Corruption 28% Temperature Cool (2) Movement Hovering (60) Location -6/Hub_04(d) Parts ------- > --- POWER (2) -------- (None) > --- PROPULSION (2) --- Gravmag System > --- UTILITY (9) ------ Advanced Heat Sink Advanced Heat Sink Advanced Visual Processing Unit Advanced Sensor Array Advanced Signal Interpreter Core Analyzer > --- WEAPON (2) ------- (None) > --- INVENTORY (5) ---- Energy Well (350) High-capacity Matter Pod (55) Matter Filter KE Penetrator Peak State ------------ > --- POWER ------------ Light Antimatter Reactor Quantum Reactor > --- PROPULSION ------- Centrium Heavy Treads > --- UTILITY ---------- Advanced Heat Sink Advanced Heat Sink Large Storage Unit Improved Trap Scanner Advanced Visual Processing Unit Advanced Sensor Array Advanced Signal Interpreter Core Analyzer Centrium Medium Armor Plating > --- WEAPON ----------- Advanced Variable Charge Gun Advanced KE Penetrator > --- INVENTORY -------- Improved Deuterium Engine Centrium Heavy Treads Gravmag System Advanced Heat Sink Advanced Heat Sink Advanced Heat Sink Energy Well High-capacity Matter Pod Heavy Laser Heavy Laser Gatling Laser Plasma Rifle Plasma Rifle Powered Hammer [Rating: 99] Favorites ----------- Power Heavy Deuterium Engine Engine Heavy Deuterium Engine Power Core Fission Core Reactor Quantum Reactor Propulsion Armored Wheel Treads Light Treads Wheel Armored Wheel Hover Unit Gravmag System Utility Large Storage Unit Device Advanced Heat Sink Storage Large Storage Unit Processor Advanced Visual Processing Unit Protection Improved Medium Armor Plating Weapon Ion Cannon Energy Gun Gatling Laser Energy Cannon Ion Cannon Ballistic Gun Advanced KE Penetrator Launcher Heavy Rocket Launcher Impact Weapon Powered Hammer Slashing Weapon Katana Build | -11 -10 -10 -9 -8 -7 -7 -6 -6 -6 -6 -6 ------- Run | Jun Mat Min Mat Mat Fac Sto Fac Ext Cet Arc Hub Slots Evolved 8 | . . . 2 2 2 . 2 . . . . Power 1 | . . . . . . . 1 . . . . Propulsion . | . . . . . . . . . . . . Utility 7 | . . . 2 2 2 . 1 . . . . Weapon . | . . . . . . . . . . . . Parts Attached 202 | 6 1 . 25 24 25 39 31 9 22 8 12 Power 21 | 1 . . 2 1 2 4 3 2 2 2 2 Engine 15 | 1 . . 2 1 2 4 2 2 . . 1 Core 4 | . . . . . . . 1 . . 2 1 Reactor 2 | . . . . . . . . . 2 . . Propulsion 18 | 2 . . 5 2 . 3 . 2 2 . 2 Treads 7 | 2 . . 3 . . . . . 1 . 1 Leg . | . . . . . . . . . . . . Wheel 10 | . . . 2 2 . 3 . 2 1 . . Hover 1 | . . . . . . . . . . . 1 Flight . | . . . . . . . . . . . . Utility 98 | 1 1 . 10 15 12 18 16 5 9 4 7 Device 46 | . . . 3 8 7 6 6 3 7 3 3 Storage 4 | 1 . . 2 . . 1 . . . . . Processor 7 | . 1 . . 2 2 1 1 . . . . Hackware . | . . . . . . . . . . . . Protection 41 | . . . 5 5 3 10 9 2 2 1 4 Artifact . | . . . . . . . . . . . . Weapon 65 | 2 . . 8 6 11 14 12 . 9 2 1 Energy Gun 13 | . . . 2 . . 2 5 . 3 1 . Energy Cannon 31 | . . . 5 4 11 5 5 . 1 . . Ballistic Gun 10 | 2 . . . . . 4 . . 2 1 1 Ballistic Cannon . | . . . . . . . . . . . . Launcher 3 | . . . . . . 1 . . 2 . . Special Weapon . | . . . . . . . . . . . . Impact Weapon 7 | . . . 1 1 . 2 2 . 1 . . Slashing Weapon 1 | . . . . 1 . . . . . . . Piercing Weapon . | . . . . . . . . . . . . Special Melee Weapon . | . . . . . . . . . . . . Unidentified Prototypes 15 | . . . 3 . . 5 2 1 4 . . Parts Lost 43 | . . . . 2 1 9 . 2 15 3 11 Power 7 | . . . . . . 1 . . 1 1 4 Propulsion 7 | . . . . . . 2 . 1 3 . 1 Utility 18 | . . . . 2 1 3 . 1 7 1 3 Weapon 11 | . . . . . . 3 . . 4 1 3 Highest Loss Streak 14 | . . . . 1 1 5 . 1 14 2 7 To Critical Strikes 1 | . . . . . . . . . 1 . . Average Slot Usage (%) 95 | . 96 100 94 95 95 99 99 99 88 92 87 Engine 6 | . 14 14 11 8 6 6 7 6 2 . 1 Core 2 | . . . . . . . 4 5 . 8 9 Reactor 1 | . . . . . . . . . 9 3 . Treads 4 | . 28 28 10 . . . . . 4 6 5 Wheel 10 | . . . 11 18 15 14 13 13 1 . . Device 18 | . . . 8 16 29 21 21 20 22 23 19 Storage 7 | . 14 14 11 9 7 7 6 6 6 6 5 Processor 15 | . 10 14 11 15 11 15 15 20 20 20 20 Protection 10 | . . . 8 10 6 15 15 12 6 9 11 Energy Gun 2 | . . . . . . 2 6 . 5 1 . Energy Cannon 9 | . . . 21 15 14 10 4 13 1 . . Ballistic Gun 3 | . 28 28 . . . 1 . . 4 11 11 Naked Turns . | . . . . . . . . . . . . Heaviest Build 87 | 13 13 13 46 58 61 64 83 87 83 78 84 Greatest Support 80 | 40 40 40 43 24 24 24 24 24 80 80 80 Greatest Overweight (x) 11 | . . . 2 2 2 2 3 3 11 . 1 Average Overweight (x) 1 | . . . 1 1 1 1 2 2 . . . Largest Inventory Capacity 15 | 8 8 8 15 15 15 15 15 15 15 15 15 Average Capacity 14 | 7 8 8 11 15 15 15 15 15 15 15 14 Most Carried 15 | 3 3 3 12 15 15 15 15 13 15 15 15 Average Carried 10 | . 2 3 5 12 12 10 11 12 11 11 12 Final Capacity 15 | 8 8 8 15 15 15 15 15 15 15 15 5 Final Carried 14 | 1 3 3 12 9 14 12 13 12 13 11 4 Class Distribution -------------------- 56% | Mutant 23% | Scavenger-Skirmisher 14% | Scavenger-Mutant 4% | Skirmisher Dominant Class ---------------- Mutant | -10/Materials Mutant | -10/Mines Scavenger-Mutant | -9/Materials Mutant | -8/Materials Mutant | -7/Factory Mutant | -7/Storage Mutant | -6/Factory Mutant | -6/Extension Scavenger-Skirmisher | -6/Cetus Scavenger-Skirmisher | -6/Archives Scavenger-Skirmisher | -6/Hub_04(d) Resources | -11 -10 -10 -9 -8 -7 -7 -6 -6 -6 -6 -6 ----------- Run | Jun Mat Min Mat Mat Fac Sto Fac Ext Cet Arc Hub Matter Collected 3398 | 237 164 36 220 260 275 686 362 105 347 216 490 Remotely . | . . . . . . . . . . . . Salvage Created 7657 | . 70 159 1179 847 598 1243 531 741 810 335 1144 Parts 371 | . 13 8 74 55 21 59 17 36 37 13 38 Haulers Intercepted 7 | . . . 3 1 . 2 . 1 . . . Recyclers Shooed 2 | . . . 1 . . 1 . . . . . Parts Field Recycled . | . . . . . . . . . . . . Retrieved Matter . | . . . . . . . . . . . . Parts Self-Destructed . | . . . . . . . . . . . . Prevented . | . . . . . . . . . . . . Kills | -11 -10 -10 -9 -8 -7 -7 -6 -6 -6 -6 -6 ------- Run | Jun Mat Min Mat Mat Fac Sto Fac Ext Cet Arc Hub Combat Hostiles Destroyed 117 | . 3 5 18 18 5 18 5 8 18 4 15 Melee 7 | . . . . 7 . . . . . . . Guns 46 | . 3 5 . . . 6 4 . 13 4 11 Cannons 53 | . . . 17 11 5 12 1 5 2 . . AOE 6 | . . . . . . . . . 3 . 3 Classes Destroyed 18 | . 2 1 5 3 . 1 3 2 . . 1 Worker 9 | . . . 3 . 2 1 1 1 . . 1 Builder 2 | . . . 2 . . . . . . . . Tunneler 1 | . . . . . . . 1 . . . . Hauler 7 | . . . 3 1 . 2 . 1 . . . Recycler 10 | . . . 1 . 3 3 2 . . . 1 Mechanic 1 | . . . . . . . 1 . . . . Operator 3 | . . . . 1 . 1 . . . . 1 Watcher 10 | . 1 . 3 1 . 1 . 3 1 . . Swarmer 23 | . 3 3 4 3 . 3 . . 7 . . Cutter 3 | . . . . 3 . . . . . . . Grunt 42 | . . 2 6 9 3 4 2 2 6 . 8 Brawler 1 | . . . . . . . . 1 . . . Sentry 30 | . . . 8 2 2 8 . 2 . 4 4 Specialist 2 | . . . . . . . . . . . 2 Hunter 2 | . . . . . . . 1 1 . . . Programmer 7 | . . . . . . 3 2 . 1 . 1 Heavy 1 | . . . . 1 . . . . . . . Behemoth 2 | . . . . . . . . 2 . . . Cetus Guard 4 | . . . . . . . . . 4 . . Best Kill Streak 11 | . 3 4 7 4 5 5 3 5 7 2 11 Combat Bots Only 8 | . 3 4 4 4 4 4 2 3 7 2 8 Max Kills in Single Turn 5 | . 1 2 1 1 1 1 2 2 3 1 5 Gunslinging 1 | . . . . . . . . . 1 . . Exploded 3 | . . . . . . . . . 3 . 3 Melee 1 | . . . . 1 . . . . . . . Uniques/NPCs Destroyed . | . . . . . . . . . . . . Combat | -11 -10 -10 -9 -8 -7 -7 -6 -6 -6 -6 -6 -------- Run | Jun Mat Min Mat Mat Fac Sto Fac Ext Cet Arc Hub Damage Taken 11057 | . 83 100 277 941 214 2542 231 506 2540 439 3184 Core 1429 | . 16 10 39 152 30 322 24 18 487 19 312 Absorbed by Shields 621 | . . . . . . . 98 268 255 . . Reduced by Siege Mode 138 | . . . . . . . . . 38 26 74 Regen/Repaired (Parts) 231 | . . . . . . 87 144 . . . . Core Remaining (%) 80 | 100 . 89 90 72 . 49 . . . . . Volleys Fired 374 | . 9 9 53 30 18 75 24 34 54 24 44 Largest 2 | . 2 2 2 2 2 2 2 2 2 2 2 Hottest 240 | . 40 40 120 135 140 160 149 170 240 115 68 Shots Fired 706 | . 18 18 96 58 34 148 48 61 99 38 88 Gun 316 | . 18 18 . . . 55 28 . 71 38 88 Cannon 387 | . . . 96 58 34 93 20 61 25 . . Launcher 3 | . . . . . . . . . 3 . . Special . | . . . . . . . . . . . . Kinetic 221 | . 18 18 . . . 34 . . 30 33 88 Thermal 482 | . . . 96 58 34 114 48 61 66 5 . Explosive 3 | . . . . . . . . . 3 . . Electromagnetic . | . . . . . . . . . . . . Robot Hit Streak 31 | . 3 7 11 10 23 31 15 19 28 13 6 Robot Miss Streak 7 | . 2 2 2 2 2 7 3 2 4 2 6 Penetration Max 1 | . . . . . . . . . . 1 1 Secondary Targets 7 | . . 1 . . . . . . 2 . 4 Max Gunslinging Chain 1 | . . 1 . . . . . . 1 . 1 Shots Hit Robots 483 | . 9 14 60 64 25 89 40 44 55 30 53 Core Hits 261 | . 4 8 29 31 15 43 27 19 38 14 33 Critical Kills 9 | . . . 1 . . 1 . 2 3 . 2 Critical Parts Destroyed 5 | . . . . . . . . . 1 2 2 Critical Strikes 17 | . . . 1 2 . 2 . 2 4 2 4 Burn 1 | . . . . . . 1 . . . . . Meltdown 4 | . . . 1 . . 1 . 2 . . . Destroy 10 | . . . . . . . . . 4 2 4 Sever 2 | . . . . 2 . . . . . . . Melee Attacks 44 | . . . 1 36 . 3 4 . . . . Impact 9 | . . . 1 1 . 3 4 . . . . Slashing 35 | . . . . 35 . . . . . . . Piercing . | . . . . . . . . . . . . Sneak Attacks . | . . . . . . . . . . . . Combat Hostiles . | . . . . . . . . . . . . Follow-up Attacks . | . . . . . . . . . . . . Damage Inflicted 14376 | . 101 149 1426 1724 598 2386 1004 1823 2034 812 2319 Guns 4883 | . 94 149 . . . 610 686 . 1135 812 1397 Cannons 7327 | . . . 1426 999 598 1616 318 1823 547 . . Explosions 1434 | . . . . . . 160 . . 352 . 922 Melee 725 | . . . . 725 . . . . . . . Ramming 7 | . 7 . . . . . . . . . . Kinetic 3170 | . 94 149 . . . 350 . . 457 723 1397 Thermal 9040 | . . . 1426 999 598 1876 1004 1823 1225 89 . Explosive 512 | . . . . . . 160 . . 352 . . Electromagnetic 922 | . . . . . . . . . . . 922 Impact . | . . . . . . . . . . . . Slashing 725 | . . . . 725 . . . . . . . Piercing . | . . . . . . . . . . . . Highest Corruption 27 | . . . . . . 2 2 2 2 2 27 Average Corruption 2 | . . . . . . 1 1 2 2 2 5 Corruption Purged . | . . . . . . . . . . . . Corruption Blocked . | . . . . . . . . . . . . Effects 44 | . . . . . . 12 4 6 7 6 9 Message Errors 8 | . . . . . . 2 1 1 . 1 3 Matter Fused 9 | . . . . . . . . 1 3 3 2 Heat Flow Errors 6 | . . . . . . 3 . . 2 1 . Energy Discharges 9 | . . . . . . 5 1 1 1 . 1 Parts Rejected 1 | . . . . . . . . 1 . . . Parts Fused 1 | . . . . . . . . 1 . . . Data Loss (minor) 3 | . . . . . . 2 . . . . 1 Data Loss (major) 2 | . . . . . . . 1 . . 1 . Misfires 1 | . . . . . . . . . . . 1 Alerts 2 | . . . . . . . 1 1 . . . Weapon Failures 2 | . . . . . . . . . 1 . 1 Overload Shots 24 | . . . . . . . . 15 9 . . Effects 1 | . . . . . . . . 1 . . . Energy Bleed 1 | . . . . . . . . 1 . . . Overflow Damage 175 | . . . 38 8 . 34 28 26 . . 41 Projectiles 117 | . . . 38 3 . 22 28 26 . . . Explosions 53 | . . . . . . 12 . . . . 41 Melee 5 | . . . . 5 . . . . . . . Knockbacks . | . . . . . . . . . . . . Impact . | . . . . . . . . . . . . Kinetic . | . . . . . . . . . . . . Secondary . | . . . . . . . . . . . . Self-Inflicted Damage 217 | . . . . . . 58 . . 6 . 153 Shots 4 | . . . . . . 1 . . 1 . 2 Rammed 1 | . 1 . . . . . . . . . . Targets Rammed 1 | . 1 . . . . . . . . . . Kicked . | . . . . . . . . . . . . Crushed . | . . . . . . . . . . . . Highest Temperature 369 | . . 12 258 369 . 183 85 275 288 67 . Average Temperature 73 | . . 7 68 102 . 42 31 108 113 17 . Received Heat Transfer 2212 | . . 36 96 324 78 579 12 81 427 72 507 Effects 4 | . . . . 1 . . . . 3 . . Energy Bleed 1 | . . . . 1 . . . . . . . Interference 3 | . . . . . . . . . 3 . . Siege Activations 6 | . . . . . . . . . 2 1 3 Total Turns 93 | . . . . . . . . . 37 27 29 Longest Duration 29 | . . . . . . . . . 29 27 13 Robots Corrupted 2 | . . . . . . . . . . . 2 Combat Hostiles 1 | . . . . . . . . . . . 1 Parts Fried 5 | . . . . . . . . . . . 5 Impact Corruptions . | . . . . . . . . . . . . Robots Melted 5 | . . . 1 . . 1 . 3 . . . Combat Hostiles 4 | . . . 1 . . . . 3 . . . Parts Melted 34 | . . . 7 6 . 8 8 3 2 . . Heat Transferred 13984 | . . . 2294 1554 1029 3091 1830 2340 1735 111 . Parts Sabotaged . | . . . . . . . . . . . . Parts Stolen . | . . . . . . . . . . . . Parts Stripped . | . . . . . . . . . . . . Power Chain Reactions . | . . . . . . . . . . . . Missiles Intercepted . | . . . . . . . . . . . . Alert | -11 -10 -10 -9 -8 -7 -7 -6 -6 -6 -6 -6 ------- Run | Jun Mat Min Mat Mat Fac Sto Fac Ext Cet Arc Hub Peak Influence 786 | . 92 155 407 571 368 528 327 279 246 214 786 Initial 259 | . . 35 60 123 259 114 240 37 56 97 74 Average 212 | . 37 147 257 310 258 276 167 95 153 189 263 Maximum Alert Level 3 | . . . 2 2 1 2 1 1 1 1 3 Low Security (%) 48 | 100 100 100 21 21 12 33 65 97 78 32 56 Level 1 43 | . . . 73 58 87 43 34 2 21 67 22 Level 2 6 | . . . 4 20 . 23 . . . . 16 Level 3 . | . . . . . . . . . . . 4 Level 4 . | . . . . . . . . . . . . Level 5 . | . . . . . . . . . . . . High Security . | . . . . . . . . . . . . Max Security . | . . . . . . . . . . . . Squads Dispatched 16 | . 1 . 2 3 . 3 3 . . . 4 Investigation 3 | . . . 2 . . . 1 . . . . Extermination 5 | . . . . . . 2 2 . . . 1 Reinforcement 8 | . 1 . . 3 . 1 . . . . 3 Assault . | . . . . . . . . . . . . Garrison . | . . . . . . . . . . . . Intercept . | . . . . . . . . . . . . Searches Triggered . | . . . . . . . . . . . . Construction Impeded . | . . . . . . . . . . . . Haulers Reinforced 1 | . . . . . . 1 . . . . . Active Scanning Responses . | . . . . . . . . . . . . Cargo Convoy Interrupts . | . . . . . . . . . . . . Stealth | -11 -10 -10 -9 -8 -7 -7 -6 -6 -6 -6 -6 --------- Run | Jun Mat Min Mat Mat Fac Sto Fac Ext Cet Arc Hub Distress Signals 10 | . 1 2 2 2 . . . 1 1 . 1 Communications Jammed 66 | . . . . 34 . 32 . . . . . Distress Signals 66 | . . . . 34 . 32 . . . . . Times Spotted 167 | . 5 3 24 30 6 23 8 12 20 11 25 Peak Tracking Total 9 | . 4 3 5 5 4 8 2 4 5 1 9 Tactical Retreats 5 | . . . 1 1 . 2 . . . . 1 Traps | -11 -10 -10 -9 -8 -7 -7 -6 -6 -6 -6 -6 ------- Run | Jun Mat Min Mat Mat Fac Sto Fac Ext Cet Arc Hub Traps Triggered 4 | . . . 2 . 2 . . . . . . Indirectly . | . . . . . . . . . . . . Trap Hack Attempts . | . . . . . . . . . . . . Triggered . | . . . . . . . . . . . . Disarmed . | . . . . . . . . . . . . Reprogrammed . | . . . . . . . . . . . . Reused . | . . . . . . . . . . . . Traps Extracted . | . . . . . . . . . . . . Installed . | . . . . . . . . . . . . Triggered . | . . . . . . . . . . . . Machines | -11 -10 -10 -9 -8 -7 -7 -6 -6 -6 -6 -6 ---------- Run | Jun Mat Min Mat Mat Fac Sto Fac Ext Cet Arc Hub Machines Disabled 24 | . . . 1 3 . 6 . . 5 2 7 Max in Single Turn 4 | . . . 1 1 . 2 . . 1 1 4 Network Hub 2 | . . . . . . . . . . . 2 Machines Repaired . | . . . . . . . . . . . . Machines Sabotaged . | . . . . . . . . . . . . Overloaded Fab Kills . | . . . . . . . . . . . . Hacking | -11 -10 -10 -9 -8 -7 -7 -6 -6 -6 -6 -6 --------- Run | Jun Mat Min Mat Mat Fac Sto Fac Ext Cet Arc Hub Machines Accessed 32 | . 1 . 3 5 2 8 5 2 3 . 3 Terminals 24 | . 1 . 2 4 . 7 3 2 3 . 2 Fabricators 1 | . . . . . 1 . . . . . . Repair Stations 3 | . . . . . . 1 2 . . . . Recycling Units . | . . . . . . . . . . . . Scanalyzers 3 | . . . 1 1 1 . . . . . . Garrison Access 1 | . . . . . . . . . . . 1 Total Hacks 94 | . 2 . 10 16 14 16 18 4 7 . 7 Successful 52 | . 2 . 7 8 12 5 10 2 2 . 4 Failed 42 | . . . 3 8 2 11 8 2 5 . 3 Catastrophic 9 | . . . 1 1 . 5 1 . 1 . . Database Lockouts . | . . . . . . . . . . . . Manual 26 | . 1 . 6 5 . 6 8 . . . . Terminals 63 | . 2 . 8 10 . 14 12 4 7 . 6 Fabricators 2 | . . . . . 2 . . . . . . Repair Stations 8 | . . . . . . 2 6 . . . . Recycling Units . | . . . . . . . . . . . . Scanalyzers 20 | . . . 2 6 12 . . . . . . Garrison Access 1 | . . . . . . . . . . . 1 Terminal Hacks 16 | . 1 . 3 1 . 1 2 2 2 . 4 Record 4 | . . . . . . . . . 2 . 2 Robot Analysis 1 | . . . . . . . . . . . 1 Prototype ID Bank 3 | . . . 1 . . . 2 . . . . Open Door 2 | . . . . . . 1 . 1 . . . Branch Access Points 1 | . . . . . . . . 1 . . . Alert Level 1 | . . . 1 . . . . . . . . Unreport Threat 1 | . . . 1 . . . . . . . . Locate Traps 1 | . 1 . . . . . . . . . . Zone Layout 2 | . . . . 1 . . . . . . 1 Fabricator Hacks 1 | . . . . . 1 . . . . . . Build 1 | . . . . . 1 . . . . . . Repair Station Hacks 6 | . . . . . . 2 4 . . . . Scan Component 3 | . . . . . . 1 2 . . . . Repair 3 | . . . . . . 1 2 . . . . Recycling Unit Hacks . | . . . . . . . . . . . . Scanalyzer 17 | . . . 2 4 11 . . . . . . Insert Component 7 | . . . 1 2 4 . . . . . . Analyze 10 | . . . 1 2 7 . . . . . . Garrison Access Hacks . | . . . . . . . . . . . . Unauthorized Hacks 12 | . 1 . 2 3 . 2 4 . . . . Terminals 12 | . 1 . 2 3 . 2 4 . . . . Assimilate 1 | . . . . . . . 1 . . . . Botnet 11 | . 1 . 2 3 . 2 3 . . . . Fabricators . | . . . . . . . . . . . . Repair Stations . | . . . . . . . . . . . . Recycling Units . | . . . . . . . . . . . . Scanalyzers . | . . . . . . . . . . . . Garrison Access . | . . . . . . . . . . . . Data Cores Recovered 1 | . . . . . . 1 . . . . . Used . | . . . . . . . . . . . . Hacking Detections 27 | . 1 . 2 5 1 7 5 1 3 . 2 Full Trace Events 1 | . . . . . . . 1 . . . . Feedback Events . | . . . . . . . . . . . . Feedback Blocked . | . . . . . . . . . . . . Robot Schematics Acquired . | . . . . . . . . . . . . Robots Built . | . . . . . . . . . . . . Authchips . | . . . . . . . . . . . . Time . | . . . . . . . . . . . . Total Robot Build Rating . | . . . . . . . . . . . . Part Schematics Acquired 7 | . . . 1 2 4 . . . . . . Parts Built 1 | . . . . . 1 . . . . . . Authchips . | . . . . . . . . . . . . Time 42 | . . . . . 42 . . . . . . Total Part Build Rating 4 | . . . . . 4 . . . . . . Parts Repaired 3 | . . . . . . 1 2 . . . . Time 146 | . . . . . . 32 114 . . . . Parts Recycled . | . . . . . . . . . . . . Recycled Matter . | . . . . . . . . . . . . Retrieved Matter . | . . . . . . . . . . . . Retrieved Components . | . . . . . . . . . . . . Parts Scanalyzed 7 | . . . 1 2 4 . . . . . . Part Schematics Acquired 7 | . . . 1 2 4 . . . . . . Parts Damaged 1 | . . . . . 1 . . . . . . Bothacking | -11 -10 -10 -9 -8 -7 -7 -6 -6 -6 -6 -6 ------------ Run | Jun Mat Min Mat Mat Fac Sto Fac Ext Cet Arc Hub Used RIF Installer . | . . . . . . . . . . . . Robots Hacked . | . . . . . . . . . . . . Non-combat . | . . . . . . . . . . . . Combat . | . . . . . . . . . . . . Robot Hacks Applied . | . . . . . . . . . . . . Relay Couplers Released . | . . . . . . . . . . . . Fabnet Peak Effective % . | . . . . . . . . . . . . Robots Rewired . | . . . . . . . . . . . . Allies Hacked . | . . . . . . . . . . . . Hacks Repelled . | . . . . . . . . . . . . Allies | -11 -10 -10 -9 -8 -7 -7 -6 -6 -6 -6 -6 -------- Run | Jun Mat Min Mat Mat Fac Sto Fac Ext Cet Arc Hub Total Allies 3 | . . 2 . . . . 1 . . . . Largest Group 2 | . . 2 2 . . . 1 . . . . Highest-Rated Group 48 | . . 48 48 . . . 10 . . . . Highest-Rated Ally 31 | . . 31 31 . . . 10 . . . . Total Orders . | . . . . . . . . . . . . Ally Attacks 10 | . . . 10 . . . . . . . . Total Damage 108 | . . . 108 . . . . . . . . Kills 2 | . . . 2 . . . . . . . . Allies Corrupted . | . . . . . . . . . . . . Allies Melted 1 | . . 1 . . . . . . . . . Intel | -11 -10 -10 -9 -8 -7 -7 -6 -6 -6 -6 -6 ------- Run | Jun Mat Min Mat Mat Fac Sto Fac Ext Cet Arc Hub Robot Analysis Total 1 | . . . . . . . . . . . 1 Derelict Logs Recovered 1 | . . 1 . . . . . . . . . Drone Launches . | . . . . . . . . . . . . Drone Recoveries . | . . . . . . . . . . . . Exploration | -11 -10 -10 -9 -8 -7 -7 -6 -6 -6 -6 -6 ------------- Run | Jun Mat Min Mat Mat Fac Sto Fac Ext Cet Arc Hub Turns Passed 7287 | 70 206 186 973 576 797 1153 1152 573 759 373 469 Spaces Moved 3569 | 43 110 97 490 254 495 558 536 302 306 169 209 Core 12 | 10 . . . . . . . . 2 . . Treads 1006 | 33 110 97 151 . . . . . 288 169 158 Legs . | . . . . . . . . . . . . Wheels 2500 | . . . 339 254 495 558 536 302 16 . . Hover 51 | . . . . . . . . . . . 51 Flight . | . . . . . . . . . . . . Fastest Speed 50 | 50 160 160 95 105 105 105 120 120 130 160 60 Average Speed 130 | 134 160 160 123 108 119 119 129 126 161 160 135 Slowest Speed 600 | 160 160 160 160 120 120 120 135 135 600 160 240 Overloaded Moves . | . . . . . . . . . . . . Propulsion Burnouts . | . . . . . . . . . . . . Robots Hopped . | . . . . . . . . . . . . Cave-ins Triggered . | . . . . . . . . . . . . Exploration Rate (%) 42 | 3 24 26 41 28 13 88 15 49 87 100 33 Regions Visited 11 Branch Regions 6 Pre-discovered Areas 1 | . . . . . . 1 . . . . . Known Exits Taken 4 | . . . . . . . 1 1 1 1 . Unknown Exits Taken 7 | 1 1 1 1 1 1 1 . . . . . Scrap Searched . | . . . . . . . . . . . . Spaces Dug 20 | . . . 1 . . . 3 . 16 . . Terrain Destroyed 486 | . . . 8 8 . 54 5 5 68 7 331 Melee 4 | . . . 1 . . . 3 . . . . Projectile 87 | . . . 7 8 . 26 2 5 18 7 14 AOE 395 | . . . . . . 28 . . 50 . 317 Terrain Rammed . | . . . . . . . . . . . . Walls Destroyed . | . . . . . . . . . . . . Machines Disabled . | . . . . . . . . . . . . Actions | -11 -10 -10 -9 -8 -7 -7 -6 -6 -6 -6 -6 --------- Run | Jun Mat Min Mat Mat Fac Sto Fac Ext Cet Arc Hub Total 5435 | 55 123 112 759 445 671 900 928 431 469 235 307 Wait 956 | . . 7 144 62 86 169 303 77 64 20 24 Move 3558 | 42 109 96 489 253 494 557 535 301 305 168 209 Hop . | . . . . . . . . . . . . Pick Up 181 | 7 3 . 29 22 27 32 18 6 19 8 10 Fast Attach 3 | . . . . . 3 . . . . . . Attach 91 | 6 1 . 7 11 15 18 6 4 14 3 6 Detach 5 | . . . . . 4 1 . . . . . Swap 108 | . . . 18 13 7 21 25 5 8 5 6 Drop 114 | . . . 18 18 17 24 13 4 5 7 8 Fire 374 | . 9 9 53 30 18 75 24 34 54 24 44 Melee 44 | . . . 1 36 . 3 4 . . . . Ram . | . . . . . . . . . . . . Kick . | . . . . . . . . . . . . Crush 1 | . 1 . . . . . . . . . . Escape Stasis . | . . . . . . . . . . . . Rewire . | . . . . . . . . . . . . Trap . | . . . . . . . . . . . . Miscellaneous . | . . . . . . . . . . . . Route ------- -11/Junkyard -10/Materials -10/Mines -9/Materials -8/Materials -7/Factory (discovered 2 exits: *Fac / *Sto) -7/Storage -6/Factory -6/Extension (discovered 3 exits: *Fac x2 / *Cet) -6/Cetus -6/Archives (discovered 3 exits: *Fac / *Hub x2) -6/Hub_04(d) History --------- Turn | Location | Event 37 | -11/Junkyard | Discovered new exit (range 14) 71 | -11/Junkyard | Entered Materials 195 | -10/Materials | Discovered new exit (range 15) 277 | -10/Materials | Entered Mines 316 | -10/Mines | Build established: Mutant 358 | -10/Mines | Assembled infested the area 363 | -10/Mines | Assisted by a Guerilla fighting off Assembled 432 | -10/Mines | Learned Materials stockpile data 432 | -10/Mines | Discovered new exit (range 16) 463 | -10/Mines | Entered Materials 463 | -9/Materials | Accompanied by 2 allies 463 | -9/Materials | Evolved 2 slots: Utility x2 468 | -9/Materials | Led the pair of lost Derelicts to an unsafe place 1193 | -9/Materials | Build established: Scavenger-Mutant 1423 | -9/Materials | Discovered new exit (range 5) 1436 | -9/Materials | Entered another Materials area 1436 | -8/Materials | Evolved 2 slots: Utility x2 1807 | -8/Materials | Build established: Mutant 1807 | -8/Materials | Discovered new exit (range 10) 2012 | -8/Materials | Entered Factory 2012 | -7/Factory | Evolved 2 slots: Utility x2 2612 | -7/Factory | Discovered new exit (range 19) 2684 | -7/Factory | Fabricated Component Analysis Suite (x1) 2783 | -7/Factory | Discovered new exit (range 6) 2809 | -7/Factory | Entered Storage 2855 | -7/Storage | Repaired Arm. Wheel 3148 | -7/Storage | Learned location of Armory (-4) 3399 | -7/Storage | Lost 3 parts (1n2w) 3459 | -7/Storage | Lost 5 parts (1p1n2u1w) 3905 | -7/Storage | Core integrity fell below 50% 3951 | -7/Storage | Discovered new exit (range 8) 3962 | -7/Storage | Entered Factory 3962 | -6/Factory | Evolved 2 slots: Power x1, Utility x1 4300 | -6/Factory | P-60 Hacker assimilated allied Technician 5a 4341 | -6/Factory | Spotted B-75 Beast 4892 | -6/Factory | Repaired Hvy. Ion Cannon 4935 | -6/Factory | Build established: Scavenger-Skirmisher 4963 | -6/Factory | Repaired Hvy. Deuterium Engine 5091 | -6/Factory | Discovered new exit (range 19) 5113 | -6/Factory | Identified exit to Extension 5114 | -6/Factory | Entered Extension 5143 | -6/Extension | Identified exit to Cetus 5265 | -6/Extension | Build established: Skirmisher 5281 | -6/Extension | Spotted B-75 Beast 5342 | -6/Extension | Destroyed B-75 Beast 5364 | -6/Extension | Spotted B-75 Beast 5417 | -6/Extension | Destroyed B-75 Beast 5469 | -6/Extension | Discovered new exit (range 3) 5470 | -6/Extension | Identified exit to Factory 5586 | -6/Extension | Build established: Mutant 5654 | -6/Extension | Discovered exit to Factory (range 19) 5687 | -6/Extension | Entered Cetus 5702 | -6/Cetus | Spotted Cetus Guard 5704 | -6/Cetus | Spotted Cetus Guard 5706 | -6/Cetus | Spotted Cetus Guard 5706 | -6/Cetus | Spotted Cetus Guard 5745 | -6/Cetus | Destroyed Cetus Guard 5754 | -6/Cetus | Destroyed Cetus Guard 5770 | -6/Cetus | Destroyed Cetus Guard 5795 | -6/Cetus | Destroyed Cetus Guard 5816 | -6/Cetus | Destroyed 7 combat bots 5825 | -6/Cetus | Lost 14 parts (1p3n6u4w) 6047 | -6/Cetus | Cetus Manufacturing Module disabled 6084 | -6/Cetus | Build established: Scavenger-Skirmisher 6129 | -6/Cetus | Core integrity fell below 50% 6229 | -6/Cetus | Discovered new exit (range 19) 6442 | -6/Cetus | Identified exit to Archives 6446 | -6/Cetus | Entered Archives 6595 | -6/Archives | Discovered new exit (range 20) 6600 | -6/Archives | Unable to access archive contents 6626 | -6/Archives | Unable to access archive contents 6632 | -6/Archives | Discovered exit to Factory (range 17) 6642 | -6/Archives | Discovered new exit (range 15) 6746 | -6/Archives | Identified exit to Hub_04(d) 6819 | -6/Archives | Entered Hub_04(d) 7128 | -6/Hub_04(d) | Core integrity fell below 20% 7189 | -6/Hub_04(d) | Network Hub disabled 7189 | -6/Hub_04(d) | Network Hub disabled 7217 | -6/Hub_04(d) | Spotted Lightning 7221 | -6/Hub_04(d) | Spotted Lightning 7222 | -6/Hub_04(d) | Spotted Lightning 7225 | -6/Hub_04(d) | System corruption reached 10% 7231 | -6/Hub_04(d) | Destroyed 8 combat bots 7288 | -6/Hub_04(d) | Destroyed by Lightning with EMDS Last Messages --------------- 07240_ Penetrated by EMDS Slug. 07242_ ZFS27GTDG5,WF:ICOZ4TFRUW#4NWDZXHWMHQ 07242_ Dropped Hcp. Matter Pod. 07243_ Extracted 200 matter. 07243_ Acquired Hcp. Matter Pod. 07246_ Penetrated by EMDS Slug. 07246_ Lyr. Medium Armor Plating destroyed. 07247_ Penetrated by EMDS Slug. 07248_ Adv. Heat Sink destroyed. 07248_ KE Penetrator destroyed. 07253_ Penetrated by EMDS Slug. 07255_ Centrium Heavy Treads destroyed. 07257_ XC M81WXNWDHG=WWBAAWVUTZ:UR 07257_ Dropped Lrg. Storage Unit. 07258_ Acquired 54 matter. 07259_ Acquired 20 matter. 07272_ System corrupted: Component data lost. 07280_ Mic. Nuclear Core destroyed. 07286_ Connecting with Garrison Access... 07288_ EMDS Slug penetrates Wall. Map ----- +----------------------------------------------------+ | " "## "??????????????? | | ??????????????? | | ??????????????? | | """?????????????? | | ! #???????????????? | | #???????????????? | | !!! " "????????????? | | !!! " "????????????? | | ### "# ????????????????? | | " " #?????? "# ????????????????? | | " " #??????????# #???????????????? | | " " #??????????? #???????????????? | | " " #??????????# #???????????????? | | " "##??????????# #?######????????? | | ![="##??????????# #?# #????????? | | =%=! ###????????# #?# " #????????? | | |!/!! #????????# #?# " ###??????? | | " =##########?## ### " ""#??????? | | #"%=!%!!= ### ## ""#??????? | | [%= *=!!= """ Y## ## ! ""#??????? | | ##[ %[!== ### ## G#??????? | | ?#%=!#######+##?# ##"" ""#??????? | | ?#*["## #### #### ##"" ""#??????? | | ?#% " # ##"T ""#??????? | | ?# " """" + i ##"" ###??????? | | " """" # """ ##"" @######???? | | " """" # ## # ####? | | ##""" """" # ####+## """#? | | "# # """ g "#? | | "" ## ! + g "#? | | "" ?# # u k "#? | | "" ?# #############/## """#? | | "" ?# = ]]]#?????????# # ####? | | ?# ]]]#?????????#" ######???? | | ###?# ]] #?????????#" o #????????? | | ????# #?????????#"k #????????? | | ????########?????????# #????????? | | ?????????????????????#" #????????? | | ?????????????????????#" t #????????? | | ?????????????????????#" #????????? | | ?????????????????????# #????????? | | ?????????????????????#" #????????? | | ?????????????????????#" #????????? | | ?????????????????????#" #????????? | | ?????????????????????? #????????? | | ??????????????????????#####????????? | | ???????????????????????????????????? | | ???????????????????????????????????? | | ???????????????????????????????????? | | ???????????????????????????????????? | +----------------------------------------------------+ Best States ------------- Heat Dissipation 80 Energy Generation 41 Energy Capacity 750 Matter Stores 400 Matter Capacity 400 Sight Range 20 Robot Scan Range 16 Terrain Scan Density 10 Jamming Range 12 Armor Coverage 900 Evasion (%) 53 Targeting Accuracy 12 Core Analysis 6 Recoil Reduction 2 Particle Charging 15 Item Schematics ----------------- Hvy. Flail | -9/Materials | Scanalyzed Ion Cannon | -8/Materials | Scanalyzed Lgt. Armor Plating | -8/Materials | Scanalyzed Transmission Jammer | -7/Factory | Scanalyzed Hvy. Armor Plating | -7/Factory | Scanalyzed Hvy. Particle Cannon | -7/Factory | Scanalyzed Plasma Cannon | -7/Factory | Scanalyzed Robot Schematics ------------------ None Fabricated ------------ Component Analysis Suite | x1 | -7/Factory | Preloaded Alien Tech Used ----------------- None Achievements -------------- None Challenges ------------ None Game ------ Seed SeismicColdNetwork Manual? 0 Play Time 01:49:39 Cumulative 83.7 hours Start 2023.09.27 @ 16:09:05 End 2023.09.27 @ 18:04:40 Sessions 1 Manual Loads 0 Difficulty Rogue Special Mode None Game No. 153 Rogue 153 Adventurer 0 Explorer 0 Win Type - Total 0 Types 0/0/0/0/0/0/0/0/0 Lore% 40 Gallery% 52 Achievement% 38 Wizard Run 0 Options --------- ASCII 0 Keyboard 0 Movement Numpad Keybinds 0 Fullscreen 1 Font 12/Tallcaps Map View 83x54 Tactical HUD 1 Map Filters NONE Filters NONE Steam 1 RUN: 607d34e4-75e3-45e4-962a-1321924630ff